bitfinex-derivatives/quotes_BTCF0:USTF0_20240814
["timestamp","ask_amount","ask_price","bid_price","bid_amount"]
[1723601828855,0.10814294,60721.0,60719.0,0.08232]
[1723601829343,0.5764,60720.0,60714.0,0.014]
[1723601829543,0.3608,60715.0,60714.0,0.014]
[1723601829945,0.46894294,60715.0,60714.0,0.028]
[1723601830146,0.46894294,60715.0,60714.0,0.014]
[1723601830544,1.36306294,60715.0,60714.0,0.014]
[1723601830850,0.56743553,60715.0,60714.0,0.014]
[1723601831040,0.60686358,60715.0,60714.0,0.014]
[1723601831243,0.50834294,60715.0,60714.0,0.014]
[1723601831642,0.50934294,60715.0,60714.0,0.028]
[1723601831843,1.00346294,60715.0,60714.0,0.028]
[1723601832240,0.50934294,60715.0,60714.0,0.028]
[1723601832450,0.51234294,60715.0,60714.0,0.014]
[1723601832646,0.51234294,60715.0,60712.0,0.00024703]
[1723601833544,0.47294294,60715.0,60712.0,0.00024703]
[1723601834845,0.46894294,60715.0,60712.0,0.00024703]
[1723601835247,0.46894294,60715.0,60712.0,0.08257703]
[1723601835445,0.47094294,60715.0,60712.0,0.08257703]
[1723601835846,0.47194294,60715.0,60712.0,0.08357703]
[1723601836047,0.47194294,60715.0,60712.0,0.09357703]
[1723601836757,0.47294294,60715.0,60712.0,0.10057703]
[1723601837054,0.47294294,60715.0,60712.0,0.02924703]
[1723601837450,0.47294294,60715.0,60713.0,0.082327]
[1723601837647,0.3648,60715.0,60713.0,0.142427]
[1723601839254,0.3648,60715.0,60714.0,0.082327]
[1723601839255,0.004,60715.0,60714.0,0.082327]
[1723601839460,0.003,60715.0,60714.0,0.082327]
[1723601839652,0.003,60715.0,60714.0,0.576447]
[1723601839950,0.003,60715.0,60714.0,0.082327]
[1723601840158,0.00024703,60724.0,60716.0,0.082324]
[1723601840456,0.3608,60720.0,60716.0,0.082324]
[1723601840655,0.3608,60720.0,60717.0,0.082323]
[1723601840852,0.46894294,60720.0,60717.0,0.082323]
[1723601841852,0.46894294,60720.0,60718.0,0.082322]
[1723601842553,0.46994294,60720.0,60718.0,0.082322]
[1723601842757,0.46994294,60720.0,60719.0,0.082321]
[1723601842758,0.3618,60720.0,60719.0,0.082321]
[1723601843357,0.3628,60720.0,60719.0,0.082321]
[1723601843657,0.001,60720.0,60719.0,0.082321]
[1723601845049,0.00024703,60724.0,60720.0,0.082318]
[1723601845248,0.10838997,60724.0,60720.0,0.082318]
[1723601845452,0.00024703,60724.0,60721.0,0.082318]
[1723601845653,0.10838997,60724.0,60721.0,0.082318]
[1723601845852,0.00024703,60724.0,60721.0,0.082318]
[1723601846156,0.3608,60722.0,60721.0,0.082318]
[1723601848355,0.3608,60722.0,60721.0,0.084318]
[1723601849854,0.3618,60722.0,60721.0,0.091318]
[1723601850759,0.46994294,60722.0,60721.0,0.009]
[1723601850957,0.75464294,60722.0,60721.0,0.009]
[1723601851348,0.75464294,60722.0,60721.0,0.05799311]
[1723601851349,0.83695994,60722.0,60721.0,0.05799311]
[1723601851547,0.83695994,60722.0,60721.0,0.009]
[1723601854158,0.75464294,60722.0,60721.0,0.009]
[1723601854365,0.46994294,60722.0,60721.0,0.009]
[1723601854556,0.10914294,60722.0,60721.0,0.009]
[1723601855863,0.10914294,60722.0,60721.0,0.091318]
[1723601856054,0.10914294,60722.0,60721.0,0.009]
[1723601856262,0.10914294,60722.0,60721.0,0.21602083]
[1723601856662,0.39384294,60722.0,60721.0,0.21602083]
[1723601857263,0.39384294,60722.0,60721.0,0.13440121]
[1723601858056,0.3526738,60722.0,60721.0,0.13440121]
[1723601858263,0.47526649,60722.0,60721.0,0.009]
[1723601858664,0.83606649,60722.0,60721.0,0.009]
[1723601858971,0.6991874,60722.0,60721.0,0.009]
[1723601859165,0.55136649,60722.0,60721.0,0.009]
[1723601860671,0.83606649,60722.0,60721.0,0.009]
[1723601860872,1.2795971,60722.0,60721.0,0.009]
[1723601861165,1.96025484,60722.0,60721.0,0.009]
[1723601861371,1.87145152,60722.0,60721.0,0.009]
[1723601861567,2.05161167,60722.0,60721.0,0.009]
[1723601861960,1.87145152,60722.0,60721.0,0.009]
[1723601862370,1.87146706,60722.0,60721.0,0.009]
[1723601862771,1.47146706,60722.0,60721.0,0.009]
[1723601862972,1.87146706,60722.0,60721.0,0.009]
[1723601863164,1.47146706,60722.0,60721.0,0.009]
[1723601863369,1.87146706,60722.0,60721.0,0.009]
[1723601863560,1.87146706,60722.0,60721.0,0.00810001]
[1723601864165,0.97718003,60722.0,60702.0,0.082343]
[1723601864370,0.4922636,60703.0,60702.0,0.082343]
[1723601864672,0.40110283,60703.0,60702.0,0.082343]
[1723601864877,0.40110283,60703.0,60696.0,0.082351]
[1723601865171,0.14789655,60701.0,60700.0,0.27809538]
[1723601865374,0.14789655,60701.0,60700.0,0.12543819]
[1723601866576,0.14789655,60701.0,60700.0,0.22361838]
[1723601867664,0.14789655,60701.0,60700.0,0.30596438]
[1723601867978,0.14889655,60701.0,60700.0,0.21478419]
[1723601868181,0.14989655,60701.0,60700.0,0.22178419]
[1723601868566,0.15089655,60701.0,60700.0,0.38246199]
[1723601868763,0.14889655,60701.0,60700.0,0.36846199]
[1723601869375,0.14989655,60701.0,60700.0,0.37446199]
[1723601869679,0.14989655,60701.0,60700.0,0.22178419]
[1723601871378,0.14789655,60701.0,60700.0,0.20778419]
[1723601871872,0.14789655,60701.0,60700.0,0.3058376]
[1723601872081,0.14889655,60701.0,60700.0,0.3188376]
[1723601872469,0.001,60701.0,60700.0,0.3188376]
[1723601872686,0.002,60701.0,60700.0,0.3308376]
[1723601872972,0.002,60701.0,60700.0,0.23278135]
[1723601873379,0.002,60701.0,60700.0,0.107346]
[1723601873780,0.001,60701.0,60700.0,0.095346]
[1723601874779,0.002,60701.0,60700.0,0.108346]
[1723601874982,0.002,60701.0,60700.0,0.15736605]
[1723601875171,0.003,60701.0,60700.0,0.17036605]
[1723601875784,0.001,60701.0,60700.0,0.14436605]
[1723601875983,0.001,60701.0,60700.0,0.095346]
[1723601876180,0.001,60701.0,60700.0,0.096346]
[1723601876384,0.3618,60701.0,60700.0,0.14536605]
[1723601876586,0.3628,60701.0,60700.0,0.15938627]
[1723601877179,0.3628,60701.0,60700.0,0.07704027]
[1723601877587,0.3608,60701.0,60700.0,0.04904027]
[1723601878585,0.42852677,60701.0,60700.0,0.04904027]
[1723601879289,0.42852677,60701.0,60699.0,0.00012617]
[1723601880486,0.3618,60701.0,60700.0,0.094346]
[1723601881390,0.3618,60701.0,60700.0,0.082346]
[1723601883086,0.3618,60701.0,60700.0,0.094346]
[1723601883288,0.3628,60701.0,60700.0,0.15740128]
[1723601883487,0.3618,60701.0,60700.0,0.14540318]
[1723601883881,0.001,60701.0,60700.0,0.14540318]
[1723601884077,0.42952677,60701.0,60700.0,0.07605718]
[1723601884286,0.43052677,60701.0,60700.0,0.027]
[1723601884481,1.40611177,60701.0,60700.0,0.013]
[1723601884989,1.40711177,60701.0,60700.0,0.039]
[1723601885191,1.40811177,60701.0,60700.0,0.039]
[1723601885382,1.40811177,60701.0,60700.0,0.053]
[1723601885689,1.40911177,60701.0,60700.0,0.053]
[1723601886778,1.43155671,60701.0,60700.0,0.053]
[1723601889891,0.082353,60695.0,60688.0,0.05340783]
[1723601890093,0.3608,60689.0,60688.0,0.05340783]
[1723601890292,0.3608,60689.0,60681.0,0.0735]
[1723601890591,0.3608,60689.0,60683.0,0.0873006]
[1723601890786,0.00016262,60688.0,60683.0,0.0873006]
[1723601890990,0.00016262,60688.0,60683.0,0.10874379]
[1723601891188,0.00016262,60688.0,60685.0,0.082366]
[1723601891593,0.00016262,60688.0,60683.0,0.10874379]
[1723601891795,0.00016262,60688.0,60687.0,0.082364]
[1723601892186,0.00016262,60688.0,60683.0,0.09414319]
[1723601892388,0.00016262,60688.0,60683.0,0.10874379]
[1723601892794,0.00016262,60688.0,60683.0,0.19111279]
[1723601893295,0.00116262,60688.0,60683.0,0.19111279]
[1723601893892,0.00216262,60688.0,60683.0,0.19111279]
[1723601894288,0.3608,60687.0,60683.0,0.19111279]
[1723601894491,0.00216262,60688.0,60683.0,0.19111279]
[1723601894796,0.3608,60687.0,60683.0,0.19111279]
[1723601895391,0.00216262,60688.0,60687.0,0.082364]
[1723601895692,0.34860905,60694.0,60693.0,0.082356]
[1723601895884,0.3608,60704.0,60693.0,0.082356]
[1723601895885,0.3608,60704.0,60703.0,0.082342]
[1723601896389,0.3608,60708.0,60707.0,0.082337]
[1723601899600,0.3608,60708.0,60701.0,0.00024703]
[1723601899802,0.3628,60708.0,60701.0,0.00024703]
[1723601900598,0.3638,60708.0,60701.0,0.00024703]
[1723601901100,0.3638,60708.0,60707.0,0.082337]
[1723601901601,0.003,60708.0,60707.0,0.36041471]
[1723601902496,0.002,60708.0,60707.0,0.082337]
[1723601903288,0.3216241,60713.0,60707.0,0.30579584]
[1723601903498,0.3216241,60713.0,60708.0,0.1254218]
[1723601903699,0.3216241,60713.0,60709.0,0.1254218]
[1723601903901,0.3216241,60713.0,60710.0,0.1254218]
[1723601904102,0.3216241,60713.0,60711.0,0.1254218]
[1723601904296,0.3216241,60713.0,60712.0,0.2071042]
[1723601904698,0.3216241,60713.0,60712.0,0.1254218]
[1723601905103,0.3226241,60713.0,60712.0,0.1254218]
[1723601905998,0.3226241,60713.0,60712.0,0.12541976]
[1723601906305,0.3216241,60713.0,60712.0,0.12541976]
[1723601906498,0.3226241,60713.0,60712.0,0.12541976]
[1723601906900,0.3216241,60713.0,60712.0,0.12541976]
[1723601907101,0.36104703,60714.0,60712.0,0.12541976]
[1723601907405,0.36104703,60714.0,60713.0,0.20711513]
[1723601908406,0.36104703,60714.0,60713.0,0.12541994]
[1723601909297,0.00024703,60714.0,60713.0,0.20774894]
[1723601909594,0.00024703,60714.0,60713.0,0.35904894]
[1723601910002,0.00024703,60714.0,60713.0,0.12541994]
[1723601910201,0.00224703,60714.0,60713.0,0.12541994]
[1723601910400,0.07433969,60714.0,60712.0,0.0744]
[1723601910606,0.14655416,60713.0,60712.0,0.0744]
[1723601910806,0.03178986,60713.0,60712.0,0.0744]
[1723601911607,0.11475888,60713.0,60712.0,0.0744]
[1723601911800,0.07534048,60714.0,60712.0,0.0744]
[1723601912104,0.03178986,60713.0,60712.0,0.0744]
[1723601912906,0.001,60713.0,60712.0,0.0744]
[1723601913107,0.07309334,60713.0,60712.0,0.0744]
[1723601914002,0.03278986,60713.0,60712.0,0.0744]
[1723601914518,0.11574385,60713.0,60712.0,0.0744]
[1723601914901,0.03278986,60713.0,60712.0,0.0744]
[1723601915900,0.07309328,60713.0,60712.0,0.0744]
[1723601916509,0.11576907,60713.0,60712.0,0.0744]
[1723601916704,0.14755893,60713.0,60712.0,0.0744]
[1723601917308,0.14855893,60713.0,60712.0,0.0744]
[1723601917505,0.03378986,60713.0,60712.0,0.0744]
[1723601917697,0.03378986,60713.0,60712.0,0.15673]
[1723601921909,0.002,60713.0,60712.0,0.15673]
[1723601930309,0.002,60713.0,60712.0,0.08233]
[1723601930615,0.85692,60713.0,60703.0,0.0691]
[1723601930807,0.0715,60712.0,60706.0,0.082338]
[1723601931014,0.0715,60712.0,60703.0,0.0691]
[1723601931314,0.0715,60712.0,60707.0,0.082337]
[1723601931508,0.0715,60712.0,60703.0,0.0691]
[1723601933207,0.0725,60712.0,60703.0,0.0691]
[1723601934112,0.0725,60712.0,60707.0,0.082337]
[1723601935017,0.0725,60712.0,60702.0,0.10285821]
[1723601935216,0.0725,60712.0,60701.0,0.64250976]
[1723601935217,0.0755,60711.0,60703.0,0.082342]
[1723601935612,0.0731,60710.0,60703.0,0.082342]
[1723601936316,0.3578,60710.0,60701.0,0.36336703]
[1723601936620,0.3608,60705.0,60701.0,0.00024703]
[1723601937208,0.3608,60705.0,60701.0,0.02131373]
[1723601937610,0.3608,60705.0,60701.0,0.10365873]
[1723601939018,0.3618,60705.0,60701.0,0.10365873]
[1723601939213,0.3618,60705.0,60702.0,0.082343]
[1723601940823,0.3608,60705.0,60702.0,0.082343]
[1723601941026,0.3618,60705.0,60702.0,0.082343]
[1723601941524,0.3638,60705.0,60702.0,0.082343]
[1723601941725,0.003,60705.0,60704.0,0.082341]
[1723601942430,0.003,60705.0,60704.0,0.154541]
[1723601942727,0.003,60705.0,60704.0,0.226041]
[1723601943424,0.001,60705.0,60704.0,0.226041]
[1723601943629,0.002,60705.0,60704.0,0.082341]
[1723601947527,0.002,60705.0,60704.0,0.576541]
[1723601947734,0.002,60705.0,60704.0,0.746541]
[1723601947932,0.00024703,60714.0,60713.0,0.082329]
[1723601949932,0.00124703,60714.0,60713.0,0.082329]
[1723601950132,0.00224703,60714.0,60713.0,0.082329]
[1723601951335,0.00224703,60714.0,60713.0,0.10300935]
[1723601958143,0.00224703,60714.0,60713.0,0.25300935]
[1723601962341,0.3608,60728.0,60716.0,0.2847]
[1723601962545,0.3608,60728.0,60727.0,0.08231]
[1723601962844,0.01991997,60737.0,60731.0,0.082304]
[1723601963045,0.3608,60739.0,60731.0,0.082304]
[1723601964847,0.3608,60739.0,60732.0,0.082302]
[1723601965051,0.3728,60739.0,60732.0,0.082302]
[1723601965240,0.3728,60739.0,60733.0,0.3608]
[1723601965440,0.012,60739.0,60735.0,0.082299]
[1723601965946,0.012,60739.0,60736.0,0.082297]
[1723601966644,0.026,60739.0,60736.0,0.082297]
[1723601967535,0.027,60739.0,60736.0,0.082297]
[1723601968551,0.055,60739.0,60736.0,0.082297]
[1723601969653,0.055,60739.0,60733.0,0.3608]
[1723601969852,0.0795,60738.0,60729.0,0.00024703]
[1723601970552,0.0795,60738.0,60729.0,0.02012992]
[1723601971351,0.0865,60738.0,60729.0,0.02012992]
[1723601973458,0.0965,60738.0,60729.0,0.02012992]
[1723601974652,0.3608,60732.0,60729.0,0.00024703]
[1723601977058,0.171795,60738.0,60729.0,0.00024703]
[1723601977258,0.3608,60732.0,60729.0,0.00024703]
[1723601977650,0.3668,60732.0,60729.0,0.00024703]
[1723601978360,0.3768,60732.0,60729.0,0.00024703]
[1723601978861,0.8708,60732.0,60729.0,0.00024703]
[1723601979762,0.082306,60730.0,60729.0,0.00024703]
[1723601980259,0.576306,60730.0,60729.0,0.00024703]
[1723601980560,0.937106,60730.0,60729.0,0.00024703]
[1723601981752,0.943106,60730.0,60729.0,0.00024703]
[1723601982364,1.371555,60730.0,60729.0,0.00024703]
[1723601984463,0.367008,60729.0,60719.0,0.08232]
[1723601984658,0.444708,60729.0,60719.0,0.08232]
[1723601984958,0.0745,60728.0,60719.0,0.08232]
[1723601985862,0.1138,60720.0,60719.0,0.08232]
[1723601987456,0.1148,60720.0,60719.0,0.08232]
[1723601988767,0.1148,60720.0,60718.0,0.01853496]
[1723601989064,0.1148,60720.0,60717.0,0.00024703]
[1723601989065,0.4756,60720.0,60717.0,0.00024703]
[1723601990357,0.4746,60720.0,60717.0,0.00024703]
[1723601991157,0.55692,60720.0,60717.0,0.00024703]
[1723601991467,0.4756,60720.0,60717.0,0.00024703]
[1723601991966,0.4756,60720.0,60718.0,0.082321]
[1723601992167,0.4756,60720.0,60719.0,0.0753]
[1723601994564,0.4766,60720.0,60719.0,0.0753]
[1723601995168,0.01698772,60720.0,60719.0,0.20070926]
[1723601995468,0.37778772,60720.0,60719.0,0.20070926]
[1723601995958,0.00024703,60726.0,60719.0,0.35335365]
[1723601996266,0.3608,60725.0,60723.0,0.09835068]
[1723601996467,0.7216,60725.0,60724.0,0.22375994]
[1723601997457,0.8354,60725.0,60724.0,0.22375994]
[1723601998259,0.8354,60725.0,60724.0,0.12540926]
[1723602000058,0.8354,60725.0,60724.0,0.22375994]
[1723602000464,0.8354,60725.0,60724.0,0.12540926]
[1723602000660,0.8354,60725.0,60724.0,0.22375994]
[1723602001063,0.8354,60725.0,60724.0,0.12540926]
[1723602001267,0.8354,60725.0,60724.0,0.27804941]
[1723602001470,0.00124703,60726.0,60725.0,0.082312]
[1723602001768,0.1138,60728.0,60727.0,0.08231]
[1723602001975,0.1138,60728.0,60727.0,0.54021233]
[1723602002468,0.1138,60728.0,60727.0,0.65503643]
[1723602002670,0.1138,60728.0,60727.0,0.36035941]
[1723602002871,0.1138,60728.0,60727.0,0.6550341]
[1723602003462,0.4786,60728.0,60727.0,0.6550341]
[1723602003666,0.4786,60728.0,60727.0,0.39287351]
[1723602003971,0.3648,60728.0,60727.0,0.27804941]
[1723602004767,0.3718,60728.0,60727.0,0.27804941]
[1723602004967,0.3718,60728.0,60727.0,0.2780229]
[1723602005171,0.948108,60728.0,60727.0,0.2780229]
[1723602005469,1.092808,60728.0,60727.0,0.2780229]
[1723602005675,1.492808,60728.0,60727.0,0.2780229]
[1723602006477,1.092808,60728.0,60727.0,0.2780229]
[1723602006678,0.3718,60728.0,60727.0,0.2780229]
[1723602007276,0.3718,60728.0,60727.0,0.540191]
[1723602008969,0.3718,60728.0,60727.0,0.3603329]
[1723602009174,0.3718,60728.0,60727.0,0.54017254]
[1723602009779,0.3718,60728.0,60727.0,0.54017187]
[1723602011780,0.3718,60728.0,60727.0,0.65516942]
[1723602011973,0.3718,60728.0,60727.0,0.54017187]
[1723602015384,0.3718,60728.0,60727.0,0.45786187]
[1723602015591,0.3718,60728.0,60725.0,0.11498096]
[1723602015796,0.2846,60726.0,60725.0,0.11498096]
[1723602015988,0.2846,60726.0,60719.0,0.0753]
[1723602016173,0.3608,60723.0,60719.0,0.0753]
[1723602017786,0.3618,60723.0,60719.0,0.0753]
[1723602020688,0.38043293,60723.0,60719.0,0.0753]
[1723602022285,0.3608,60720.0,60719.0,0.0753]
[1723602022687,0.082331,60712.0,60698.0,0.28146273]
[1723602022882,0.3608,60705.0,60703.0,0.0722]
[1723602023577,0.2846,60704.0,60700.0,0.00018425]
[1723602026194,0.082344,60702.0,60700.0,0.00018425]
[1723602026494,0.30473634,60704.0,60700.0,0.00018425]
[1723602026989,0.002,60704.0,60700.0,0.00018425]
[1723602027200,0.002,60704.0,60702.0,0.082343]
[1723602027494,0.002,60704.0,60703.0,0.0724]
[1723602027694,0.002,60704.0,60703.0,0.1422]
[1723602027895,0.002,60704.0,60703.0,0.6364]
[1723602028592,0.003,60704.0,60703.0,0.6364]
[1723602029489,0.003,60704.0,60703.0,0.1422]
[1723602030193,0.002,60704.0,60703.0,0.1422]
[1723602030393,0.3608,60705.0,60704.0,0.082341]
[1723602032195,0.3618,60705.0,60704.0,0.082341]
[1723602032893,0.3628,60705.0,60704.0,0.082341]
[1723602034394,0.3628,60705.0,60703.0,0.0724]
[1723602034796,0.3628,60705.0,60703.0,0.154742]
[1723602034987,0.3628,60705.0,60704.0,0.082341]
[1723602036195,0.002,60705.0,60704.0,0.082341]
[1723602036490,0.001,60705.0,60704.0,0.082341]
[1723602036695,0.002,60705.0,60704.0,0.082341]
[1723602037398,0.02310641,60730.0,60706.0,0.082337]
[1723602037697,0.3608,60732.0,60721.0,0.3608]
[1723602037897,0.0728,60734.0,60729.0,0.082306]
[1723602038396,0.3597,60738.0,60729.0,0.082306]
[1723602039097,0.2846,60738.0,60729.0,0.082306]
[1723602039293,0.2846,60738.0,60732.0,0.082301]
[1723602039498,0.00024703,60738.0,60732.0,0.082301]
[1723602040401,0.01324703,60738.0,60733.0,0.2779645]
[1723602040704,0.002,60738.0,60736.0,0.09825589]
[1723602040906,0.2866,60738.0,60737.0,0.12536924]
[1723602041205,0.576216,60737.0,60734.0,0.08186497]
[1723602041407,0.082296,60737.0,60736.0,0.06549259]
[1723602041604,0.482296,60737.0,60736.0,0.06549259]
[1723602041801,0.976216,60737.0,60736.0,0.06549259]
[1723602042403,0.976216,60737.0,60732.0,0.08186497]
[1723602042706,0.3608,60734.0,60732.0,0.08186497]
[1723602044002,0.3628,60734.0,60732.0,0.08186497]
[1723602044696,0.3668,60734.0,60732.0,0.08286497]
[1723602045501,0.38932444,60734.0,60732.0,0.08286497]
[1723602048709,0.38932444,60734.0,60732.0,0.001]
[1723602048909,0.47162444,60734.0,60732.0,0.001]
[1723602054221,0.082301,60733.0,60732.0,0.001]
[1723602054616,0.082307,60729.0,60728.0,0.08186497]
[1723602054812,0.3608,60729.0,60727.0,0.00024703]
[1723602055121,0.082308,60728.0,60727.0,0.06571558]
[1723602056321,0.3608,60729.0,60727.0,0.20750728]
[1723602056517,0.3608,60729.0,60728.0,0.12539185]
[1723602057225,0.3608,60729.0,60728.0,0.12539078]
[1723602058428,1.2548,60729.0,60727.0,0.00124703]
[1723602058614,0.494,60728.0,60727.0,0.00124703]
[1723602059018,0.894,60728.0,60727.0,0.00124703]
[1723602059221,0.894,60728.0,60727.0,0.00024703]
[1723602059921,0.976308,60728.0,60727.0,0.00024703]
[1723602060122,0.651508,60728.0,60727.0,0.00024703]
[1723602060318,1.051508,60728.0,60727.0,0.00024703]
[1723602060531,0.651508,60728.0,60727.0,0.00024703]
[1723602060831,1.057508,60728.0,60727.0,0.00124703]
[1723602061528,0.657508,60728.0,60727.0,0.20855104]
[1723602061725,1.057508,60728.0,60727.0,0.12664976]
[1723602062023,1.051508,60728.0,60727.0,0.12564976]
[1723602062225,0.5692,60728.0,60727.0,0.12564976]
[1723602062627,0.0752,60728.0,60727.0,0.12564976]
[1723602062828,0.5692,60728.0,60727.0,0.12564976]
[1723602063220,0.501,60728.0,60727.0,0.12664976]
[1723602063425,0.013,60728.0,60727.0,0.12764976]
[1723602064544,0.013,60728.0,60727.0,0.22590565]
[1723602065418,0.013,60728.0,60727.0,0.28028312]
[1723602066331,0.3608,60729.0,60727.0,0.28028312]
[1723602066525,0.3608,60729.0,60728.0,0.27803609]
[1723602067223,0.30316814,60729.0,60728.0,0.27803609]
[1723602069037,0.005,60729.0,60728.0,0.27803609]
[1723602069436,0.005,60729.0,60728.0,0.39266797]
[1723602069736,0.005,60729.0,60728.0,0.27803609]
[1723602069927,0.005,60729.0,60728.0,0.45786235]
[1723602070124,0.3608,60733.0,60728.0,0.57249423]
[1723602070326,0.30316842,60733.0,60729.0,0.27801064]
[1723602070532,0.30316842,60733.0,60730.0,0.27801064]
[1723602070728,0.30316842,60733.0,60731.0,0.27801064]
[1723602070928,0.30316842,60733.0,60732.0,0.27801064]
[1723602072026,0.10482444,60734.0,60732.0,0.27801064]
[1723602072334,0.10482444,60734.0,60733.0,0.27801064]
[1723602074326,0.59878444,60734.0,60733.0,0.12538986]
[1723602074530,0.59878444,60734.0,60733.0,0.12638986]
[1723602075237,0.59878444,60734.0,60733.0,0.001]
[1723602075431,0.59878444,60734.0,60733.0,0.05031847]
[1723602075432,0.60078444,60734.0,60733.0,0.05031847]
[1723602075626,0.10682444,60734.0,60733.0,0.001]
[1723602076029,0.10482444,60734.0,60733.0,0.06675616]
[1723602076730,0.10782444,60734.0,60733.0,0.06675616]
[1723602078137,0.02552444,60734.0,60733.0,0.20857842]
[1723602078338,0.02552444,60734.0,60733.0,0.12638322]
[1723602081031,0.02552444,60734.0,60733.0,0.48718322]
[1723602083147,0.02552444,60734.0,60733.0,0.63978459]
[1723602083640,0.003,60734.0,60733.0,0.72208559]
[1723602083840,0.3608,60743.0,60738.0,0.082293]
[1723602084039,0.082281,60748.0,60739.0,0.49678459]
[1723602084338,0.092281,60748.0,60743.0,0.09846562]
[1723602084541,0.092281,60748.0,60744.0,0.12536348]
[1723602084836,0.092281,60748.0,60745.0,0.12536348]
[1723602085034,0.092281,60748.0,60746.0,0.12536348]
[1723602085236,0.0511243,60748.0,60747.0,0.12536348]
[1723602085443,0.0611243,60748.0,60747.0,0.12536348]
[1723602086134,0.08360102,60748.0,60747.0,0.12536348]
[1723602086334,0.08360102,60748.0,60747.0,0.20736987]
[1723602087643,0.08760102,60748.0,60747.0,0.20736987]
[1723602087836,0.08760102,60748.0,60747.0,0.08200639]
[1723602088737,0.09260102,60748.0,60747.0,0.08200639]
[1723602090243,0.45340102,60748.0,60747.0,0.08200639]
[1723602090731,0.44840102,60748.0,60747.0,0.08200639]
[1723602090935,0.45340102,60748.0,60747.0,0.08300639]
[1723602093239,0.45340102,60748.0,60747.0,0.20836953]
[1723602094644,1.02952302,60748.0,60747.0,0.12636314]
[1723602094835,0.08229,60741.0,60740.0,0.00024703]
[1723602095145,0.36689,60741.0,60736.0,0.08209015]
[1723602095335,0.164596,60735.0,60733.0,0.08209015]
[1723602095536,0.3669,60734.0,60732.0,0.05764547]
[1723602095736,0.2846,60733.0,60732.0,0.02728702]
[1723602095939,0.082308,60728.0,60727.0,0.08210718]
[1723602096246,0.443108,60728.0,60727.0,0.08210718]
[1723602097738,0.443108,60728.0,60727.0,0.0741]
[1723602099851,0.449108,60728.0,60727.0,0.0751]
[1723602100451,0.47026806,60728.0,60727.0,0.0751]
[1723602102347,0.55224213,60728.0,60727.0,0.0751]
[1723602106653,0.55224213,60728.0,60727.0,0.001]
[1723602107649,0.63455013,60728.0,60727.0,0.001]
[1723602107840,0.082309,60727.0,60726.0,0.00024703]
[1723602108040,1.080209,60727.0,60716.0,0.3608]
[1723602108245,0.082318,60720.0,60719.0,0.08202288]
[1723602108443,0.366918,60720.0,60719.0,0.08202288]
[1723602109653,0.082318,60720.0,60719.0,0.08202288]
[1723602110354,0.082318,60720.0,60718.0,0.08202288]
[1723602111053,0.082318,60720.0,60714.0,0.45922745]
[1723602111054,0.3608,60724.0,60719.0,0.20743357]
[1723602111250,0.443114,60724.0,60720.0,0.0736]
[1723602112053,0.082314,60723.0,60720.0,0.0736]
[1723602112359,0.082316,60722.0,60720.0,0.0736]
[1723602113457,0.082317,60721.0,60719.0,0.08202288]
[1723602113657,0.082317,60721.0,60718.0,0.08202288]
[1723602114165,0.08232,60719.0,60718.0,0.08202288]
[1723602114460,0.08232,60719.0,60718.0,0.20743356]
[1723602114758,0.001,60722.0,60718.0,0.20743356]
[1723602114960,0.001,60722.0,60718.0,0.08202288]
[1723602115154,0.083316,60722.0,60718.0,0.08202288]
[1723602115355,0.082317,60721.0,60719.0,0.08202288]
[1723602117064,0.001,60722.0,60719.0,0.08202288]
[1723602117256,0.001,60722.0,60720.0,0.20743277]
[1723602117466,0.083316,60722.0,60720.0,0.08202288]
[1723602118159,0.001,60721.0,60720.0,0.08202288]
[1723602118361,0.001,60721.0,60720.0,0.12540989]
[1723602119548,0.083317,60721.0,60720.0,0.2074242]
[1723602119851,0.082318,60720.0,60719.0,0.08201431]
[1723602120157,0.082318,60720.0,60719.0,0.20742501]
[1723602120351,0.082318,60720.0,60719.0,0.1254107]
[1723602122561,0.083318,60720.0,60719.0,0.1254107]
[1723602122764,0.1048142,60720.0,60719.0,0.1254107]
[1723602122965,0.1048142,60720.0,60714.0,0.3608]
[1723602122966,0.082322,60718.0,60714.0,0.3608]
[1723602123165,0.0224962,60720.0,60714.0,0.443126]
[1723602123466,0.0224962,60720.0,60714.0,0.3608]
[1723602123767,0.2846,60717.0,60713.0,0.00024703]
[1723602124264,0.082326,60714.0,60713.0,0.00024703]
[1723602124463,0.00024703,60726.0,60713.0,0.38219644]
[1723602124659,0.00024703,60726.0,60725.0,0.3608]
[1723602124860,0.6454,60743.0,60733.0,0.0823]
[1723602125062,0.3146,60743.0,60738.0,0.3608]
[1723602125269,0.3146,60743.0,60739.0,0.0688]
[1723602125468,0.2846,60743.0,60739.0,0.0688]
[1723602126667,0.2916,60743.0,60739.0,0.0698]
[1723602127567,0.3135593,60743.0,60739.0,0.0698]
[1723602133566,0.3265593,60743.0,60739.0,0.0698]
[1723602135464,0.0419593,60743.0,60739.0,0.0698]
[1723602136869,0.0419593,60743.0,60739.0,0.152093]
[1723602138581,0.0289593,60743.0,60739.0,0.152093]
[1723602139366,0.0389593,60743.0,60739.0,0.152093]
[1723602141065,0.0389593,60743.0,60740.0,0.082291]
[1723602142273,0.0399593,60743.0,60740.0,0.082291]
[1723602142977,0.0329593,60743.0,60740.0,0.083291]
[1723602144477,0.3608,60741.0,60740.0,0.001]
[1723602144674,0.08229,60741.0,60740.0,0.001]
[1723602145379,0.0329593,60743.0,60740.0,0.001]
[1723602145780,0.0219593,60743.0,60740.0,0.001]
[1723602146080,0.011,60741.0,60740.0,0.001]
[1723602146471,0.011,60741.0,60737.0,0.071]
[1723602146667,0.011,60741.0,60740.0,0.001]
[1723602147882,0.011,60743.0,60740.0,0.001]
[1723602148779,0.011,60743.0,60737.0,0.071]
[1723602148975,0.011,60743.0,60740.0,0.001]
[1723602149583,0.011,60741.0,60740.0,0.001]
[1723602150476,0.011,60743.0,60740.0,0.001]
[1723602151184,0.011,60741.0,60740.0,0.001]
[1723602151580,0.011,60741.0,60738.0,0.1036079]